bitfinex/quotes_ETHUSD_20250827
["timestamp","ask_amount","ask_price","bid_price","bid_amount"]
[1756297168435,1.669,4609.9,4609.5,0.7463]
[1756297168652,1.669,4610.7,4609.6,0.4613]
[1756297168946,3.769,4610.6,4609.6,0.4613]
[1756297169152,3.0,4610.5,4610.0,2.16919204]
[1756297169350,1.669,4610.7,4610.1,0.4613]
[1756297169655,3.0,4610.5,4610.1,2.63044167]
[1756297169958,0.02,4610.8,4610.4,0.285]
[1756297170116,3.02,4610.8,4610.4,0.285]
[1756297170317,5.18885661,4610.8,4610.4,0.7463]
[1756297170652,5.18885661,4610.8,4609.2,0.5711]
[1756297170653,0.3132,4610.5,4609.2,0.5711]
[1756297170866,2.16937391,4609.7,4609.2,0.4623]
[1756297171016,3.769,4609.6,4609.2,0.4623]
[1756297171462,2.1690913,4610.3,4609.5,0.285]
[1756297171747,1.669,4610.4,4609.5,2.91573237]
[1756297171955,1.669,4610.4,4609.6,0.4613]
[1756297171956,3.769,4610.2,4609.6,0.4613]
[1756297172112,3.769,4610.2,4610.1,0.001]
[1756297172313,0.34151496,4610.5,4610.1,0.286]
[1756297172622,3.769,4610.4,4610.1,0.286]
[1756297173027,0.34151496,4610.5,4610.1,0.286]
[1756297173259,3.769,4610.3,4610.1,0.286]
[1756297174919,3.769,4610.3,4610.2,0.4613]
[1756297175175,3.769,4610.3,4610.2,0.7463]
[1756297175465,3.769,4610.3,4610.2,0.285]
[1756297176334,2.16910329,4610.2,4610.1,0.001]
[1756297176965,3.769,4610.3,4610.1,0.001]
[1756297177170,0.002,4610.5,4610.1,0.7473]
[1756297177171,3.768,4610.2,4610.1,0.7473]
[1756297177769,3.768,4610.2,4610.1,0.286]
[1756297178669,3.768,4610.2,4610.1,0.001]
[1756297178867,3.768,4610.2,4610.1,0.286]
[1756297179683,3.768,4610.2,4610.1,0.7473]
[1756297180079,3.768,4610.4,4610.2,2.16905791]
[1756297180243,4.10948018,4610.5,4610.3,0.285]
[1756297180587,4.10948018,4610.5,4610.4,0.4613]
[1756297180746,4.10948018,4610.5,4610.4,0.285]
[1756297180950,4.10868018,4610.5,4610.4,0.285]
[1756297181977,4.10868018,4610.5,4610.4,0.7463]
[1756297182783,4.10868018,4610.5,4610.4,0.285]
[1756297182952,0.34068018,4610.5,4610.4,3.16082348]
[1756297183153,0.34068018,4610.5,4610.4,3.26962348]
[1756297183154,0.0012,4610.5,4610.4,3.26962348]
[1756297183674,0.0012,4610.5,4610.4,3.29131357]
[1756297183850,0.0012,4610.5,4610.4,3.26962348]
[1756297184055,0.0012,4610.5,4610.4,3.29131357]
[1756297184248,0.0012,4610.5,4610.4,6.95131357]
[1756297184454,1e-08,4610.5,4610.1,0.001]
[1756297184863,1e-08,4610.5,4610.1,2.170149]
[1756297185092,1e-08,4610.5,4610.1,2.17014528]
[1756297185289,1e-08,4610.5,4610.4,0.285]
[1756297187795,1e-08,4610.5,4610.1,0.001]
[1756297188198,1e-08,4610.5,4610.2,2.16909993]
[1756297188518,1e-08,4610.5,4610.1,2.17010915]
[1756297188801,0.43340001,4610.5,4610.1,0.001]
[1756297189299,2.1690256,4610.4,4610.1,0.001]
[1756297189499,0.43340001,4610.5,4610.1,0.001]
[1756297189703,2.60236716,4610.5,4610.1,0.001]
[1756297190707,0.43340001,4610.5,4610.1,0.001]
[1756297191766,1e-08,4610.5,4610.4,2.48360919]
[1756297192066,1e-08,4610.5,4610.4,2.93160919]
[1756297193003,1e-08,4610.5,4610.4,2.48360919]
[1756297193183,1e-08,4610.5,4610.4,2.93160919]
[1756297193785,1e-08,4610.5,4610.4,6.69760919]
[1756297194139,1e-08,4610.5,4610.4,11.43298063]
[1756297194413,1e-08,4610.5,4610.4,11.54178063]
[1756297195372,1e-08,4610.5,4610.4,7.77578063]
[1756297195571,1e-08,4610.5,4610.4,11.54178063]
[1756297196069,1e-08,4610.5,4610.4,7.77578063]
[1756297196278,1e-08,4610.5,4610.4,11.54178063]
[1756297197105,1e-08,4610.5,4610.4,7.77578063]
[1756297197311,1e-08,4610.5,4610.4,11.54178063]
[1756297198110,1e-08,4610.8,4610.7,2.82886806]
[1756297198284,1e-08,4610.8,4610.7,7.22161443]
[1756297198478,1e-08,4610.8,4610.7,7.96252575]
[1756297199228,1e-08,4611.0,4610.9,2.82877399]
[1756297199532,1e-08,4611.0,4610.9,5.85046172]
[1756297199681,1e-08,4611.0,4610.9,11.76784494]
[1756297200527,1e-08,4611.0,4610.9,8.00284494]
[1756297200707,1e-08,4611.0,4610.9,11.76784494]
[1756297201283,1e-08,4611.0,4610.9,8.00284494]
[1756297201488,1e-08,4611.0,4610.9,7.65984494]
[1756297201798,1e-08,4611.0,4610.9,9.32784494]
[1756297202197,1e-08,4611.0,4610.9,10.43584494]
[1756297202507,1e-08,4611.0,4610.9,3.89484494]
[1756297202730,1e-08,4611.0,4610.9,7.91637399]
[1756297203028,0.31210001,4611.0,4610.9,7.60177399]
[1756297203582,1e-08,4611.0,4610.9,7.60177399]
[1756297204094,1e-08,4611.0,4610.9,9.02437399]
[1756297204290,1e-08,4611.5,4611.4,2.82853883]
[1756297204494,5.214,4615.2,4612.2,2.16816269]
[1756297204495,1.688,4614.8,4612.2,2.16816269]
[1756297204697,0.445,4614.0,4612.2,11.57476269]
[1756297204895,0.445,4613.5,4612.2,11.57476269]
[1756297205116,1e-08,4612.3,4612.2,12.02276269]
[1756297205301,1e-08,4612.8,4612.7,2.82792767]
[1756297205619,0.01920001,4613.8,4613.7,2.16745778]
[1756297205793,0.01920001,4613.8,4613.7,5.95313235]
[1756297205995,0.01920001,4613.8,4613.7,5.93145778]
[1756297206204,0.01920001,4613.8,4613.7,2.27545778]
[1756297206381,0.77630001,4613.8,4613.7,2.16745778]
[1756297206580,0.77630001,4613.8,4613.7,5.93145778]
[1756297206817,0.01920001,4613.8,4613.7,5.93145778]
[1756297207007,0.33130001,4613.8,4613.7,5.93145778]
[1756297207623,0.01920001,4613.8,4613.7,5.93145778]
[1756297207822,0.77630001,4613.8,4613.7,2.16745778]
[1756297208115,0.77630001,4613.8,4613.7,5.93145778]
[1756297208716,0.77630001,4613.8,4613.7,3.764]
[1756297209693,0.77630001,4613.8,4613.5,2.16755092]
[1756297209911,0.33130001,4613.8,4613.5,2.16755092]
[1756297210116,0.445,4613.7,4613.6,5.93050476]
[1756297210419,0.7571,4613.7,4613.4,2.16756536]
[1756297210620,0.3121,4613.7,4613.6,3.763]
[1756297210842,0.3121,4613.7,4613.6,5.93050476]
[1756297211027,0.3121,4613.7,4613.6,3.763]
[1756297211225,0.7571,4613.7,4612.8,0.02]
[1756297211392,2.1675421,4613.6,4612.9,3.763]
[1756297211595,0.3121,4613.0,4612.8,0.02]
[1756297212139,0.445,4612.9,4612.8,0.02]
[1756297212645,0.7571,4612.9,4612.8,0.02]
[1756297213958,2.92493368,4612.9,4612.8,0.02]
[1756297214253,5.92493368,4612.9,4612.8,0.02]
[1756297215047,6.58493368,4612.9,4612.8,0.02]
[1756297215642,2.16830373,4611.9,4611.8,0.02]
[1756297215950,8.93030373,4611.9,4611.8,0.02]
[1756297216134,9.68740373,4611.9,4611.8,0.02]
[1756297218617,10.02683467,4611.9,4611.8,0.02]
[1756297219049,10.68683467,4611.9,4611.8,0.02]
[1756297220220,3.66,4611.8,4610.8,0.02]
[1756297220464,3.66,4611.2,4610.8,0.02]
[1756297220663,3.14007399,4610.9,4610.8,0.02]
[1756297220958,13.14007399,4610.9,4610.8,0.02]
[1756297221141,13.58447399,4610.9,4610.8,0.02]
[1756297221341,13.92397136,4610.9,4610.8,0.02]
[1756297222913,2.8289151,4610.6,4610.1,0.001]
[1756297223090,5.82910329,4610.2,4610.1,0.001]
[1756297223261,7.80840329,4610.2,4610.1,0.001]
[1756297223461,8.25280329,4610.2,4610.1,0.001]
[1756297223894,8.59234114,4610.2,4610.1,0.001]
[1756297224598,8.67934414,4610.2,4610.1,0.001]
[1756297224965,8.33980629,4610.2,4610.1,0.001]
[1756297226222,15.33980629,4610.2,4610.1,0.001]
[1756297226426,19.10280629,4610.2,4610.1,0.001]
[1756297226638,15.518003,4610.2,4610.1,0.001]
[1756297226800,7.0,4610.2,4610.1,2.89725034]
[1756297227119,7.0,4610.2,4610.1,3.18897537]
[1756297227694,7.0,4610.2,4610.1,0.59202503]
[1756297227896,7.0,4610.2,4610.1,0.001]
[1756297227897,9.92480329,4610.2,4610.1,0.001]
[1756297228190,13.68780329,4610.2,4610.1,0.001]
[1756297228405,11.5187,4610.2,4610.1,0.001]
[1756297228605,7.0,4610.2,4610.1,0.3003]
[1756297228822,7.0,4610.2,4610.1,0.7281]
[1756297229337,7.0,4610.2,4610.1,0.3003]
[1756297230119,6.9992,4610.2,4610.1,0.3003]
[1756297230312,6.9992,4610.2,4610.1,0.001]
[1756297230936,9.92400329,4610.2,4610.1,0.001]
[1756297232196,12.92400329,4610.2,4610.1,0.001]
[1756297233121,6.9992,4610.2,4610.1,0.001]
[1756297233785,9.16830329,4610.2,4610.1,0.001]
[1756297234294,9.92400329,4610.2,4610.1,0.001]
[1756297234687,9.47960329,4610.2,4610.1,0.001]
[1756297234890,10.7622,4610.2,4610.1,0.001]
[1756297235102,12.93130329,4610.2,4610.1,0.001]
[1756297235420,13.24260329,4610.2,4610.1,0.001]
[1756297236227,13.68700329,4610.2,4610.1,0.001]
[1756297236524,16.68700329,4610.2,4610.1,0.001]
[1756297237590,16.24260329,4610.2,4610.1,0.001]
[1756297238289,16.68700329,4610.2,4610.1,0.001]
[1756297238727,17.02652198,4610.2,4610.1,0.001]
[1756297239326,16.58212198,4610.2,4610.1,0.001]
[1756297239823,17.02652198,4610.2,4610.1,0.001]
[1756297240119,16.58212198,4610.2,4610.1,0.001]
[1756297240420,17.02652198,4610.2,4610.1,0.001]
[1756297241912,16.58212198,4610.2,4610.1,0.001]
[1756297242246,13.27082198,4610.2,4610.1,0.3003]
[1756297242835,13.27082198,4610.2,4610.1,0.001]
[1756297243935,19.35552198,4610.2,4610.1,0.001]
[1756297244226,15.59252198,4610.2,4610.1,0.001]
[1756297244427,19.35452198,4610.2,4610.1,0.001]
[1756297245032,19.01500329,4610.2,4610.1,0.001]
[1756297245803,19.01700329,4610.2,4610.1,0.001]
[1756297246427,19.01700329,4610.2,4609.8,1e-08]
[1756297246428,2.82924445,4609.9,4609.8,1e-08]
[1756297246631,9.59124445,4609.9,4609.8,1e-08]
[1756297246792,17.34614445,4609.9,4609.8,1e-08]
[1756297247249,17.34614445,4609.9,4606.3,0.4278]
[1756297247250,2.287,4609.5,4606.3,0.4278]
[1756297247432,2.287,4609.5,4605.0,1.669]
[1756297247433,5.83018598,4607.9,4606.0,2.59884888]
[1756297247618,11.90162139,4607.9,4606.0,0.4278]
[1756297247816,12.01688598,4607.9,4606.3,0.4278]
[1756297249022,0.32913541,4609.3,4607.8,0.3193]
[1756297249210,1.669,4609.8,4607.8,0.3193]
[1756297249412,0.33966793,4608.5,4607.9,0.4278]
[1756297249821,2.1697747,4608.8,4608.4,0.2993]
[1756297250022,3.762,4608.7,4607.9,2.17017401]
[1756297250212,0.33963263,4608.5,4608.0,2.17013848]
[1756297250428,0.33963263,4608.5,4608.4,0.3115]
[1756297250916,2.46963263,4608.5,4608.4,0.7433]
[1756297251116,0.33963263,4608.5,4608.4,0.7433]
[1756297251332,0.33963263,4608.5,4608.4,2.91325052]
[1756297251532,0.33963263,4608.5,4608.4,0.7433]
[1756297252111,3.762,4609.0,4608.4,2.91325052]
[1756297252312,3.762,4609.0,4608.5,2.16989289]
[1756297252509,4.10159596,4609.0,4608.4,0.7433]
[1756297252710,4.10159596,4609.0,4608.4,0.3115]
[1756297253628,4.10159596,4609.0,4608.4,2.48144669]
[1756297254252,4.10159596,4609.0,4608.5,2.16990314]
[1756297254415,0.33879596,4609.0,4608.9,0.3115]
[1756297254620,4.10079596,4609.0,4608.9,0.3115]
[1756297255454,3.762,4609.0,4608.9,0.3115]
[1756297256363,3.762,4609.0,4608.1,0.4318]
[1756297256763,5.9316731,4609.0,4608.2,2.1700398]
[1756297257046,5.93166942,4609.0,4608.2,2.17002991]
[1756297257277,0.308,4608.3,4607.8,0.02]
[1756297257428,3.762,4608.2,4607.8,0.02]
[1756297258219,5.93204713,4608.2,4607.8,0.02]
[1756297258420,0.4378,4608.5,4607.8,0.02]
[1756297258653,2.17000601,4608.3,4607.8,0.02]
[1756297258950,2.17001972,4608.3,4607.8,0.02]
[1756297259155,2.16999761,4608.3,4607.8,0.02]
[1756297259358,3.762,4608.4,4607.8,0.02]
[1756297259651,2.60789061,4608.2,4607.8,0.02]
[1756297259861,3.762,4608.1,4607.8,0.02]
[1756297260354,0.33964077,4608.5,4608.0,0.3115]
[1756297260559,3.762,4608.2,4608.1,0.4318]
[1756297260854,3.762,4608.2,4608.1,0.3115]
[1756297261861,3.762,4608.2,4608.1,2.48159179]
[1756297262161,0.33964077,4608.5,4608.2,2.1700447]
[1756297262322,0.33964077,4608.5,4608.4,2.16995052]
[1756297262663,0.33964077,4608.5,4608.4,2.91325052]
[1756297263021,0.33964077,4608.5,4608.4,0.3115]
[1756297263582,3.762,4609.0,4608.4,0.3115]
[1756297263874,3.762,4609.0,4608.4,2.481448]
[1756297264378,1.669,4609.6,4609.0,2.1696532]
[1756297264579,3.762,4609.5,4608.8,0.4318]
[1756297265068,3.762,4609.5,4608.9,2.16968026]
[1756297265266,0.002,4609.0,4608.9,2.16968026]
[1756297265445,0.002,4609.0,4608.9,2.91298026]
[1756297265630,0.002,4609.0,4608.9,0.7433]
[1756297265830,0.002,4609.0,4608.9,0.3115]
[1756297266034,0.002,4609.0,4608.9,2.48121511]
[1756297266230,0.002,4609.0,4608.9,0.3115]
[1756297266434,0.002,4609.0,4608.7,2.16976673]
[1756297266672,0.002,4609.0,4608.9,0.3115]
[1756297266886,0.002,4609.0,4607.9,3.83914387]
[1756297266887,0.002,4609.0,4607.9,1.669]
[1756297267188,0.308,4608.6,4607.9,1.669]
[1756297267976,2.47786149,4608.6,4607.9,1.669]
[1756297268145,3.761,4608.7,4608.0,2.17013882]
[1756297268346,3.0,4608.9,4608.6,0.3115]
[1756297268586,7.0012,4609.0,4608.9,2.16971511]
[1756297268784,7.0012,4609.0,4608.9,2.91301511]
[1756297269287,2.16973382,4608.9,4607.8,2.19123173]
[1756297269586,7.747,4609.0,4607.8,0.021]
[1756297269587,4.1988,4608.8,4607.8,0.021]
[1756297269752,2.1698173,4608.7,4607.8,0.021]
[1756297269952,2.1698173,4608.7,4607.9,2.17018598]
[1756297270287,4.1988,4608.8,4608.1,2.17005636]
[1756297270439,3.761,4608.9,4608.6,0.3115]
[1756297271986,3.761,4608.9,4608.1,2.60188846]
[1756297272322,3.761,4608.9,4608.1,0.4318]
[1756297272468,3.761,4608.9,4608.2,2.1700447]
[1756297272638,0.308,4608.3,4607.8,0.021]
[1756297272843,10.7602,4608.2,4607.8,0.021]
[1756297273042,2.17016946,4608.0,4607.8,0.021]
[1756297273278,0.308,4607.9,4607.8,0.021]
[1756297273479,7.3072,4607.9,4607.8,0.021]
[1756297274041,9.91518598,4607.9,4607.8,0.021]
[1756297274341,13.67618598,4607.9,4607.8,0.021]
[1756297275785,16.67618598,4607.9,4607.8,0.021]
[1756297276596,2.17032728,4607.6,4606.8,0.02]
[1756297276747,2.17065705,4606.9,4606.8,0.02]
[1756297276943,9.23965705,4606.9,4606.8,0.02]
[1756297277139,9.67745705,4606.9,4606.8,0.02]
[1756297277342,5.91645705,4606.9,4606.8,0.02]
[1756297277556,9.67745705,4606.9,4606.8,0.02]
[1756297278358,10.0172253,4606.9,4606.8,0.02]
[1756297278943,10.0164253,4606.9,4606.8,0.02]
[1756297280074,3.64776825,4606.9,4606.8,0.02]
[1756297280375,10.0225253,4606.9,4606.8,0.02]
[1756297280854,9.2714253,4606.9,4606.8,0.02]
[1756297281255,9.5841253,4606.9,4606.8,0.02]
[1756297281578,10.0262253,4606.9,4606.8,0.02]
[1756297283390,9.5841253,4606.9,4606.8,0.02]
[1756297283554,7.10176825,4606.9,4606.8,0.02]
[1756297283741,9.2724253,4606.9,4606.8,0.02]
[1756297283941,3.33976825,4606.9,4606.8,0.3268]
[1756297284145,0.33976825,4606.9,4606.8,2.96090417]
[1756297284443,3.762,4607.0,4606.8,1.08629042]
[1756297284666,3.762,4607.1,4606.8,0.3268]
[1756297284842,3.762,4607.1,4606.8,0.02]
[1756297285046,5.93259843,4607.1,4606.8,0.02]
[1756297285266,5.93259843,4607.1,4606.8,0.021]
[1756297285468,2.17062625,4607.0,4606.8,0.021]
[1756297285653,3.762,4606.9,4606.8,0.021]
[1756297285857,1.67,4607.7,4606.9,0.7702]
[1756297286052,3.762,4607.6,4606.9,0.3068]
[1756297286253,3.762,4607.6,4606.8,0.021]
[1756297286479,0.3127,4606.9,4606.8,0.021]
[1756297286655,4.0747,4606.9,4606.8,0.021]
[1756297287454,3.762,4606.9,4606.8,0.021]
[1756297287973,10.7612,4606.9,4606.8,0.021]
[1756297288374,12.93185705,4606.9,4606.8,0.021]
[1756297288584,16.68665705,4606.9,4606.8,0.021]
[1756297288881,17.02641965,4606.9,4606.8,0.021]
[1756297289250,13.26441965,4606.9,4606.8,0.021]
[1756297289454,17.02541965,4606.9,4606.8,0.021]
[1756297289877,10.68621965,4606.9,4606.8,0.021]
[1756297290280,5.82311965,4606.9,4606.8,0.021]
[1756297290488,9.58411965,4606.9,4606.8,0.021]
[1756297290663,10.02621965,4606.9,4606.8,0.021]
[1756297291284,10.68621965,4606.9,4606.8,0.021]
[1756297291480,9.58411965,4606.9,4606.8,0.021]
[1756297292256,10.02621965,4606.9,4606.8,0.021]
[1756297294788,7.11328065,4606.9,4606.8,0.021]
[1756297296363,6.67118065,4606.9,4606.8,0.021]
[1756297296995,7.11328065,4606.9,4606.8,0.021]
[1756297297783,6.67118065,4606.9,4606.8,0.021]
[1756297297978,6.67118065,4606.9,4606.3,0.001]
[1756297297979,2.17089267,4606.4,4606.3,0.001]
[1756297298292,7.60189267,4606.4,4606.3,0.001]
[1756297298492,8.35669267,4606.4,4606.3,0.001]
[1756297298691,8.82009267,4606.4,4606.3,0.001]
[1756297299582,25.99076936,4606.4,4606.3,0.001]
[1756297299919,25.99076936,4606.4,4606.3,1e-08]
[1756297300410,3.66,4606.3,4605.8,1e-08]
[1756297300588,4.421,4606.2,4604.8,1e-08]
[1756297300784,3.66,4605.9,4604.8,1e-08]
[1756297300979,0.66,4605.6,4604.8,1e-08]
[1756297301293,2.17159981,4604.9,4604.8,1e-08]
[1756297301492,6.24529981,4604.9,4604.8,1e-08]
[1756297301903,6.58521019,4604.9,4604.8,1e-08]
[1756297302224,0.99313438,4604.9,4604.8,0.30680001]
[1756297302428,6.27251019,4604.9,4604.8,0.30680001]
[1756297302635,6.27251019,4604.9,4604.8,1e-08]
[1756297303221,6.58521019,4604.9,4604.8,1e-08]
[1756297303400,7.02651019,4604.9,4604.8,1e-08]
[1756297304021,7.02651019,4604.9,4604.8,0.00100001]
[1756297304224,14.68571019,4604.9,4604.8,0.00100001]
[1756297304525,17.68571019,4604.9,4604.8,0.00100001]
[1756297305021,17.34659981,4604.9,4604.8,0.00100001]
[1756297306091,2.83183563,4604.4,4604.3,0.001]
[1756297306324,7.60383563,4604.4,4604.3,0.001]
[1756297307523,11.06723563,4604.4,4604.3,0.001]
[1756297308417,11.06723563,4604.4,4604.3,0.3078]
[1756297308418,8.8954,4604.4,4604.3,0.3078]
[1756297308627,11.06723563,4604.4,4604.3,0.3078]
[1756297308820,11.06723563,4604.4,4604.3,0.001]
[1756297309220,18.06643563,4604.4,4604.3,0.001]
[1756297309797,18.40639895,4604.4,4604.3,0.001]
[1756297310125,18.71909895,4604.4,4604.3,0.001]
[1756297310328,12.47256332,4604.4,4604.3,0.2918]
[1756297310492,15.77116332,4604.4,4604.3,0.7524]
[1756297310699,9.00916332,4604.4,4604.3,0.7524]
[1756297310947,7.33916332,4604.4,4604.3,1.04483422]
[1756297311229,7.33916332,4604.4,4604.3,3.21671702]
[1756297311438,7.33916332,4604.4,4604.3,1.04483422]
[1756297311612,7.33916332,4604.4,4604.3,0.7524]
[1756297311809,6.9992,4604.4,4604.3,0.7524]
[1756297312016,6.9992,4604.4,4604.3,2.9242828]
[1756297312797,0.33989779,4605.1,4604.8,2.17163801]
[1756297313026,0.33989779,4605.1,4604.9,0.2171638]
[1756297313227,0.33989779,4605.1,4605.0,0.2908]
[1756297313539,4.10189779,4605.1,4605.0,0.7514]
[1756297314029,0.33989779,4605.1,4605.0,0.7514]
[1756297314214,3.762,4605.2,4605.0,0.7514]
[1756297314408,3.762,4605.3,4605.1,0.4606]
[1756297314624,1.671,4605.9,4605.2,0.7514]
[1756297314625,3.762,4605.4,4605.2,0.7514]
[1756297314828,3.762,4605.4,4605.3,0.4606]
[1756297315001,3.762,4605.4,4605.3,0.7514]
[1756297315206,3.762,4605.4,4605.3,0.2908]
[1756297315435,2.17142278,4605.3,4604.5,0.4606]
[1756297315640,3.762,4605.2,4604.5,0.4606]
[1756297316158,3.762,4605.2,4604.3,0.001]
[1756297316339,2.17157552,4605.0,4604.4,0.4606]
[1756297316513,3.762,4604.9,4604.4,0.4606]
[1756297316925,3.762,4604.9,4604.3,0.001]
[1756297317307,2.17170588,4604.7,4604.3,0.001]
[1756297317714,3.762,4604.6,4604.3,0.001]
[1756297317916,2.17183563,4604.4,4604.3,0.001]
[1756297318137,2.17179672,4604.5,4604.3,0.001]
[1756297318334,5.93383563,4604.4,4604.3,0.001]
[1756297318826,3.762,4604.4,4604.3,0.2918]
[1756297319847,9.58954591,4604.4,4604.3,0.001]
[1756297320351,10.05184591,4604.4,4604.3,0.001]
[1756297320859,6.28984591,4604.4,4604.3,0.001]
[1756297321025,5.51174591,4604.4,4604.3,0.001]
[1756297321225,9.59354591,4604.4,4604.3,0.001]
[1756297321448,10.05584591,4604.4,4604.3,0.001]
[1756297321863,10.71584591,4604.4,4604.3,0.001]
[1756297322576,10.80395891,4604.4,4604.3,0.001]
[1756297324953,7.03695891,4604.4,4604.3,0.001]
[1756297325153,10.80095891,4604.4,4604.3,0.001]
[1756297325361,9.02094863,4604.4,4604.3,0.001]
[1756297325567,3.762,4604.4,4604.3,0.2918]
[1756297325763,5.93583563,4604.4,4604.3,0.2918]
[1756297325970,5.93583563,4604.4,4604.3,0.001]
[1756297326157,3.764,4604.4,4604.3,0.001]
[1756297326357,2.17175519,4604.6,4604.3,0.2918]
[1756297326553,3.766,4604.5,4604.3,0.7524]
[1756297326799,3.767,4604.5,4604.3,0.58424122]
[1756297326945,3.767,4604.5,4604.4,0.4606]
[1756297327146,3.767,4604.5,4604.4,0.7514]
[1756297327480,3.767,4604.5,4604.4,0.2908]
[1756297327991,0.0012,4604.8,4604.4,0.7514]
[1756297328191,3.765,4604.7,4604.5,2.17176127]
[1756297328391,3.765,4604.7,4604.6,0.7514]
[1756297329150,3.7662,4604.8,4604.6,0.7514]
[1756297329563,0.0012,4604.8,4604.7,0.4606]
[1756297329848,3.7652,4604.8,4604.7,0.2908]
[1756297330550,3.7632,4604.8,4604.7,0.2908]
[1756297331188,4.079,4604.8,4604.3,0.001]
[1756297331387,3.0,4604.7,4604.3,0.001]
[1756297331591,3.762,4604.6,4604.3,0.001]
[1756297332166,2.48763563,4604.4,4604.3,0.001]
[1756297332367,6.24963563,4604.4,4604.3,0.001]
[1756297333174,3.3158,4604.4,4604.3,0.001]
[1756297333374,8.93383563,4604.4,4604.3,0.001]
[1756297333609,9.71193563,4604.4,4604.3,0.001]
[1756297335397,10.37193563,4604.4,4604.3,0.001]
[1756297336177,6.60993563,4604.4,4604.3,0.001]
[1756297336506,10.37193563,4604.4,4604.3,0.001]
[1756297337010,10.17253563,4604.4,4604.3,0.001]
[1756297338312,6.41053563,4604.4,4604.3,0.001]
[1756297338480,10.51251343,4604.4,4604.3,0.001]
[1756297338934,6.75051343,4604.4,4604.3,0.001]
[1756297339118,10.51251343,4604.4,4604.3,0.001]
[1756297339579,6.75051343,4604.4,4604.3,0.001]
[1756297339781,10.51251343,4604.4,4604.3,0.001]
[1756297340578,10.05021343,4604.4,4604.3,0.001]
[1756297340982,10.51311343,4604.4,4604.3,0.001]
[1756297343108,6.75111343,4604.4,4604.3,0.001]
[1756297343286,10.51411343,4604.4,4604.3,0.001]
[1756297343484,3.8005778,4604.4,4604.3,0.3056]
[1756297343700,9.27481343,4604.4,4604.3,0.3056]
[1756297344302,9.56931343,4604.4,4604.3,0.001]
[1756297345724,9.69223563,4604.4,4604.3,0.001]
[1756297346290,8.93383563,4604.4,4604.3,0.001]
[1756297347818,6.762,4604.4,4604.3,0.7512]
[1756297347996,3.762,4604.4,4604.3,0.7512]
[1756297348196,4.1019366,4604.4,4604.3,0.7512]
[1756297348437,7.1019366,4604.4,4604.3,0.7512]
[1756297348614,0.3399366,4604.4,4604.3,0.7512]
[1756297348819,3.762,4604.4,4604.3,0.7512]
[1756297348997,3.762,4604.4,4604.3,1.04352143]
[1756297349547,0.0012,4604.8,4604.3,0.7512]
[1756297349698,3.762,4604.7,4604.4,0.4456]
[1756297350004,0.0012,4604.8,4604.7,2.17169413]
[1756297350432,0.0012,4604.8,4604.7,2.92189413]
[1756297352033,0.0012,4604.8,4604.7,3.03069413]
[1756297352544,0.0004,4604.8,4604.7,3.05241107]
[1756297353334,0.0004,4604.8,4604.7,2.92189413]
[1756297353539,0.0004,4604.8,4604.7,3.58570282]
[1756297354642,0.0004,4604.8,4604.7,7.34770282]
[1756297355127,0.0004,4604.8,4604.7,3.58570282]
[1756297355346,0.0004,4604.8,4604.7,7.34670282]
[1756297358197,0.0004,4604.8,4604.7,3.03130282]
[1756297358406,0.0004,4604.8,4604.7,0.3046]
[1756297358602,0.0004,4604.8,4604.7,2.17169413]
[1756297359336,0.0004,4604.8,4604.7,2.47629413]
[1756297360339,0.0004,4604.8,4604.7,2.92189413]
[1756297360528,0.0004,4604.8,4604.7,3.0257721]
[1756297361640,0.0004,4604.8,4604.7,2.7211721]
[1756297362025,0.0004,4604.8,4604.7,3.0257721]
[1756297363144,0.0004,4604.8,4604.7,3.4713721]
[1756297364131,0.0004,4604.8,4604.7,3.0257721]
[1756297366249,0.0004,4604.8,4604.7,3.1345721]
[1756297366439,0.0004,4604.8,4604.7,3.5801721]
[1756297366614,0.0004,4604.8,4604.7,3.1345721]
[1756297367926,0.0004,4604.8,4604.7,3.0257721]
[1756297368334,0.0004,4604.8,4604.7,2.7211721]
[1756297368853,0.0004,4604.8,4604.7,3.0257721]
[1756297370653,0.0004,4604.8,4604.7,3.48728904]
[1756297371015,0.0004,4604.8,4604.7,3.4655721]
[1756297371547,0.0004,4604.8,4604.7,3.0257721]
[1756297373247,0.0004,4604.8,4604.7,6.7847721]
[1756297373456,0.0004,4604.8,4604.7,3.0257721]
[1756297373662,0.0004,4604.8,4604.7,2.7211721]
[1756297373836,0.2955,4604.8,4604.7,6.4801721]
[1756297374037,0.0004,4604.8,4604.7,6.4801721]
[1756297375878,0.0004,4604.8,4604.7,6.7793721]
[1756297376869,0.0004,4604.8,4604.3,1.672]
[1756297376870,0.769,4604.8,4604.3,0.001]
[1756297377236,2.17174218,4604.6,4604.3,0.001]
[1756297377749,2.46693563,4604.4,4604.3,0.001]
[1756297378083,0.2951,4604.4,4604.3,0.001]
[1756297378369,2.94123563,4604.4,4604.3,0.001]
[1756297378535,0.7694,4604.4,4604.3,0.001]
[1756297378980,2.94123563,4604.4,4604.3,0.001]
[1756297381646,0.7694,4604.4,4604.3,0.001]
[1756297381845,2.94123563,4604.4,4604.3,0.001]
[1756297382375,1.67,4604.8,4604.5,2.17178404]
[1756297382543,0.4743,4605.0,4604.5,2.17178404]
[1756297383050,5.9304703,4605.2,4604.4,2.17182893]
[1756297383255,0.2951,4604.6,4604.3,0.001]
[1756297383804,2.17183563,4604.4,4604.3,0.001]
[1756297384286,2.94123563,4604.4,4604.3,0.001]